Workbook

Sheet ЛОТ 1 - Брод-XIII Канал
B1: Чистење на река ЦРНА од ниска жбунеста и висока вегетација
A2: Од: | B2: Село Брод, Општина Новаци (10+000 км)
A3: До: | B3: XIII Канал, Општина Битола (20+500 км)
A6: Ред. бр. | B6: ОПИС НА РАБОТА | C6: Ед. мера | D6: Количина
B7: ЧИСТЕЊЕ НА ДЕЛ ОД РЕКА ЦРНА ОД ВЕГЕТАЦИЈА
A8: I | B8: Претходни и припремни работи
A9: 1.1 | B9: Одбележување на трасата и означување на опсегот на интервенција во присуство на надзорен орган | C9: m' | D9: 10500
B10: Вкупно (I)
A11: II | B11: Чистење на вегетација | E11: Real | F11: 100
A12: 2.1 | B12: Расчистување на минор и мајор коритото на река Црна од ниска жбунеста вегетација, со сечење, мулчирање, вадење на материјалот од коритото и одвоз до депонија на растојание од 15-20 км, без употреба на ископна механизација. | C12: m² | D12: =D9*30*90% -> 283500 | E12: Add 10% | F12: =F11*1 -> 100 | G12: 1000 | H12: =(F12/G12) -> 0.1 | I12: дрва/м'
A13: 2.2 | B13: Расчистување на минор и мајор коритото на река Црна од вегетација (дрва со пречник од Ø10 до Ø30 см) со сечење, мулчирање-уситнување, вадење на материјалот од коритото и одвоз до одредено место на растојание од 15-20 км, без употреба на ископна механизација. | C13: ком | D13: =D9*H12*60% -> 630
A14: 2.3 | B14: Расчистување на минор и мајор коритото на река Црна од вегетација (дрва со пречник поголем од Ø30 см) со сечење, мулчирање-уситнување, вадење на материјалот од коритото и одвоз до одредено место на растојание од 15-20 км, без употреба на ископна механизација. | C14: ком | D14: =D9*H12*40% -> 420
B15: Вкупно (II)
B16: Р Е К А П И Т У Л А Ц И Ј А
A17: I | B17: Претходни и припремни работи
A18: II | B18: =B11 -> Чистење на вегетација
B19: ВКУПНО:

Sheet ЛОТ 2 - XIII Канал - Драгор
B1: Чистење на река ЦРНА од ниска жбунеста и висока вегетација
A2: Од: | B2: XIII Канал, Општина Битола (20+500 км)
A3: До: | B3: Влив на река Драгор, Општина Битола (29+000 км)
A6: Ред. бр. | B6: ОПИС НА РАБОТА | C6: Ед. мера | D6: Количина
B7: ЧИСТЕЊЕ НА ДЕЛ ОД РЕКА ЦРНА ОД ВЕГЕТАЦИЈА
A8: I | B8: Претходни и припремни работи
A9: 1.1 | B9: Одбележување на трасата и означување на опсегот на интервенција во присуство на надзорен орган | C9: m' | D9: =29000-20500 -> 8500
B10: Вкупно (I)
A11: II | B11: Чистење на вегетација | E11: Real | F11: 100
A12: 2.1 | B12: Расчистување на минор и мајор коритото на река Црна од ниска жбунеста вегетација, со сечење, мулчирање, вадење на материјалот од коритото и одвоз до депонија на растојание од 10-15 км, без употреба на ископна механизација. | C12: m² | D12: =D9*27*90% -> 206550 | E12: Add 10% | F12: =F11*1 -> 100 | G12: 1000 | H12: =(F12/G12) -> 0.1 | I12: дрва/м'
A13: 2.2 | B13: Расчистување на минор и мајор коритото на река Црна од вегетација (дрва со пречник од Ø10 до Ø30 см) со сечење, мулчирање-уситнување, вадење на материјалот од коритото и одвоз до одредено место на растојание од 15-20 км, без употреба на ископна механизација. | C13: ком | D13: =D9*H12*60% -> 510
A14: 2.3 | B14: Расчистување на минор и мајор коритото на река Црна од вегетација (дрва со пречник поголем од Ø30 см) со сечење, мулчирање-уситнување, вадење на материјалот од коритото и одвоз до одредено место на растојание од 15-20 км, без употреба на ископна механизација. | C14: ком | D14: =D9*H12*40% -> 340
B15: Вкупно (II)
B16: Р Е К А П И Т У Л А Ц И Ј А
A17: I | B17: Претходни и припремни работи
A18: II | B18: =B11 -> Чистење на вегетација
B19: ВКУПНО:

Sheet ЛОТ 3 - Драгор - Шемница
B1: Чистење на река ЦРНА од ниска жбунеста и висока вегетација
A2: Од: | B2: Влив на река Драгор, Општина Битола (29+000 км)
A3: До: | B3: Влив на река Шемница, Општина Могила (36+500 км)
A6: Ред. бр. | B6: ОПИС НА РАБОТА | C6: Ед. мера | D6: Количина
B7: ЧИСТЕЊЕ НА ДЕЛ ОД РЕКА ЦРНА ОД ВЕГЕТАЦИЈА
A8: I | B8: Претходни и припремни работи
A9: 1.1 | B9: Одбележување на трасата и означување на опсегот на интервенција во присуство на надзорен орган | C9: m' | D9: =36500-29000 -> 7500
B10: Вкупно (I)
A11: II | B11: Чистење на вегетација | F11: Real | G11: 225
A12: 2.1 | B12: Расчистување на минор и мајор коритото на река Црна од ниска жбунеста вегетација, со сечење, мулчирање, вадење на материјалот од коритото и одвоз до депонија на растојание од 10-15 км, без употреба на ископна механизација. | C12: m² | D12: =D9*25*90% -> 168750 | F12: Add 10% | G12: =G11*1 -> 225 | H12: 2000 | I12: =(G12/H12) -> 0.1125 | J12: дрва/м'
A13: 2.2 | B13: Расчистување на минор и мајор коритото на река Црна од вегетација (дрва со пречник од Ø10 до Ø30 см) со сечење, мулчирање-уситнување, вадење на материјалот од коритото и одвоз до одредено место на растојание од 15-20 км, без употреба на ископна механизација. | C13: ком | D13: =D9*I12*60% -> 506.25
A14: 2.3 | B14: Расчистување на минор и мајор коритото на река Црна од вегетација (дрва со пречник поголем од Ø30 см) со сечење, мулчирање-уситнување, вадење на материјалот од коритото и одвоз до одредено место на растојание од 15-20 км, без употреба на ископна механизација. | C14: ком | D14: =D9*I12*40% -> 337.5
B15: Вкупно (II)
B16: Р Е К А П И Т У Л А Ц И Ј А
A17: I | B17: Претходни и припремни работи
A18: II | B18: =B11 -> Чистење на вегетација
B19: ВКУПНО:

Sheet ЛОТ 4 - Рувци - Бучин
B1: Чистење на река ЦРНА од ниска жбунеста и висока вегетација
A2: Од: | B2: Пашино Рувци, Општина Кривогаштани (58+500 км)
A3: До: | B3: Село Бучин, Општина Крушево (63+500 км)
A6: Ред. бр. | B6: ОПИС НА РАБОТА | C6: Ед. мера | D6: Количина
B7: ЧИСТЕЊЕ НА ДЕЛ ОД РЕКА ЦРНА ОД ВЕГЕТАЦИЈА
A8: I | B8: Претходни и припремни работи
A9: 1.1 | B9: Одбележување на трасата и означување на опсегот на интервенција во присуство на надзорен орган | C9: m' | D9: =63500-58500 -> 5000
B10: Вкупно (I)
A11: II | B11: Чистење на вегетација
A12: 2.1 | B12: Расчистување на минор и мајор коритото на река Црна од ниска жбунеста вегетација, со сечење, мулчирање, вадење на материјалот од коритото и одвоз до депонија на растојание од 15-20 км, без употреба на ископна механизација. | C12: m² | D12: ='[1]Рувци - Бучин 1'!$D$12 -> 86700
A13: 2.2 | B13: Расчистување на минор и мајор коритото на река Црна од вегетација (дрва со пречник од Ø10 до Ø30 см) со сечење, мулчирање-уситнување, вадење на материјалот од коритото и одвоз до одредено место на растојание од 15-20 км, без употреба на ископна механизација. | C13: ком | D13: ='[1]Рувци - Бучин 1'!$D$13 -> 660
A14: 2.3 | B14: Расчистување на минор и мајор коритото на река Црна од вегетација (дрва со пречник поголем од Ø30 см) со сечење, мулчирање-уситнување, вадење на материјалот од коритото и одвоз до одредено место на растојание од 15-20 км, без употреба на ископна механизација. | C14: ком | D14: ='[1]Рувци - Бучин 1'!$D$14 -> 400
B15: Вкупно (II)
B16: Р Е К А П И Т У Л А Ц И Ј А
A17: I | B17: Претходни и припремни работи
A18: II | B18: =B11 -> Чистење на вегетација
B19: ВКУПНО:

Sheet ЛОТ 5 - Канал БЛАТО
B1: Чистење на канал БЛАТО (горен ток) од ниска жбунеста и висока вегетација и нанос
A2: Од: | B2: (18+000 км)
A3: До: | B3: (24+400 км)
A6: Ред. бр. | B6: ОПИС НА РАБОТА | C6: Ед. мера | D6: Количина
B7: ЧИСТЕЊЕ НА ДЕЛ ОД РЕКА ЦРНА ОД ВЕГЕТАЦИЈА
A8: I | B8: Претходни и припремни работи
A9: 1.1 | B9: Одбележување на трасата и означување на опсегот на интервенција во присуство на надзорен орган | C9: m' | D9: 6400
B10: Вкупно (I)
A11: II | B11: Чистење на вегетација и нанос
A12: 2.1 | B12: Сечење на ниска и висока вегетација, врби и жбунови со извлекување на истата на брегот од коритото и транспорт на поголеми дрвја до одредено место | C12: m3 | D12: =[1]Блато!$D$6 -> 300
A13: 2.2 | B13: Машински ископ во мокро и лепливо на наносен материјал од речното корито и чистење од ниска вегетација шамак, трски, треви и друго со депонирање на платформата од мињор коритото. | C13: m3 | D13: =[1]Блато!$D$7 -> 48900
A14: 2.3 | B14: Машинско префрлување на депонираниот материјал на насипот од речното корито, разастирање со оформување на насипот | C14: m3 | D14: =[1]Блато!$D$8 -> 34200
A15: 2.4 | B15: Надградување на насипот од речното корито со вишокот од ископаниот материјал | C15: m3 | D15: =[1]Блато!$D$9 -> 14700
A16: 2.5 | B16: Изведба на испусти со влезна и излезна глава со бетонски цефки Ø500мм, L=15m, комплет со челичен поклопец 70*60 cm | C16: ком | D16: =[1]Блато!$D$10 -> 3
B17: Вкупно (II)
B18: Р Е К А П И Т У Л А Ц И Ј А
A19: I | B19: Претходни и припремни работи
A20: II | B20: =B11 -> Чистење на вегетација и нанос
B21: ВКУПНО:
